[Event "Live Chess"]
[Site "Chess.com"]
[Date "2024.06.01"]
[Round "-"]
[White "Zhevzh1k7"]
[Black "PatientChessPapa"]
[Result "1-0"]
[WhiteElo "1070"]
[BlackElo "805"]
[TimeControl "300"]
[EndTime "9:50:49 PDT"]
[Termination "Zhevzh1k7 won on time"]

1. e4 {[%clk 0:04:48.1]} 1... d5 {[%clk 0:04:58.1]} 2. exd5 {[%clk 0:04:46.6]}
2... Qxd5 {[%clk 0:04:56.7]} 3. Nc3 {[%clk 0:04:46.5]} 3... Qa5 {[%clk 0:04:55]}
4. Nf3 {[%clk 0:04:45.1]} 4... Nf6 {[%clk 0:04:51.7]} 5. d4 {[%clk 0:04:43.5]}
5... Bf5 {[%clk 0:04:49.1]} 6. Bd3 {[%clk 0:04:39.3]} 6... e6 {[%clk 0:04:43]}
7. Bxf5 {[%clk 0:04:29.8]} 7... Qxf5 {[%clk 0:04:34.4]} 8. O-O {[%clk 0:04:27]}
8... Be7 {[%clk 0:04:30.9]} 9. Re1 {[%clk 0:04:24.2]} 9... Nbd7 {[%clk
0:04:11.2]} 10. Bg5 {[%clk 0:04:17.4]} 10... c6 {[%clk 0:04:09.3]} 11. Bxf6
{[%clk 0:04:13.9]} 11... Bxf6 {[%clk 0:04:07.4]} 12. Qd3 {[%clk 0:04:10.7]}
12... Qxd3 {[%clk 0:04:04.1]} 13. cxd3 {[%clk 0:04:10.6]} 13... Rd8 {[%clk
0:03:52.9]} 14. Ne4 {[%clk 0:03:53.2]} 14... Be7 {[%clk 0:03:47.5]} 15. Rad1
{[%clk 0:03:42.6]} 15... c5 {[%clk 0:03:26.3]} 16. dxc5 {[%clk 0:03:36.5]} 16...
Nxc5 {[%clk 0:03:19]} 17. Nxc5 {[%clk 0:03:30.2]} 17... Bxc5 {[%clk 0:03:17.5]}
18. d4 {[%clk 0:03:28.9]} 18... Bb6 {[%clk 0:03:03.3]} 19. d5 {[%clk 0:03:18.3]}
19... Ke7 {[%clk 0:02:13.2]} 20. dxe6 {[%clk 0:03:09.4]} 20... Rxd1 {[%clk
0:02:09.1]} 21. Rxd1 {[%clk 0:03:04.9]} 21... Kxe6 {[%clk 0:01:45]} 22. Ng5+
{[%clk 0:03:01.4]} 22... Ke7 {[%clk 0:01:40.1]} 23. Re1+ {[%clk 0:02:57.3]}
23... Kf6 {[%clk 0:01:33.4]} 24. Ne4+ {[%clk 0:02:56.1]} 24... Kg6 {[%clk
0:01:16.6]} 25. Nd6 {[%clk 0:02:53.4]} 25... Rd8 {[%clk 0:01:01.2]} 26. Nxb7
{[%clk 0:02:49.6]} 26... Rd2 {[%clk 0:00:59.2]} 27. Rf1 {[%clk 0:02:35.4]} 27...
Rxb2 {[%clk 0:00:49.4]} 28. a4 {[%clk 0:02:33.2]} 28... Bxf2+ {[%clk 0:00:36.6]}
29. Rxf2 {[%clk 0:02:31.7]} 29... Rxb7 {[%clk 0:00:35.3]} 30. Ra2 {[%clk
0:02:25.2]} 30... a5 {[%clk 0:00:32.3]} 31. Kf2 {[%clk 0:02:23.7]} 31... Kf5
{[%clk 0:00:28.9]} 32. Kf3 {[%clk 0:02:22]} 32... h5 {[%clk 0:00:24.8]} 33. h3
{[%clk 0:02:20.1]} 33... Rb3+ {[%clk 0:00:10]} 34. Ke2 {[%clk 0:02:15.1]} 34...
g5 {[%clk 0:00:07.8]} 35. g4+ {[%clk 0:02:13.6]} 35... hxg4 {[%clk 0:00:06.2]}
36. hxg4+ {[%clk 0:02:13.5]} 36... Kxg4 {[%clk 0:00:04.4]} 37. Kf2 {[%clk
0:02:13.3]} 37... f5 {[%clk 0:00:02.5]} 38. Kg2 {[%clk 0:02:12.1]} 38... f4
{[%clk 0:00:00.1]} 39. Kf2 {[%clk 0:02:10.8]} 1-0

[Event "Live Chess"]
[Site "Chess.com"]
[Date "2024.06.01"]
[Round "-"]
[White "LaupMiths"]
[Black "Keithdfg"]
[Result "0-1"]
[WhiteElo "1837"]
[BlackElo "1754"]
[TimeControl "300"]
[EndTime "9:50:54 PDT"]
[Termination "Keithdfg won by checkmate"]

1. Nf3 {[%clk 0:04:55.4]} 1... d6 {[%clk 0:04:58.5]} 2. g3 {[%clk 0:04:53]} 2...
Bg4 {[%clk 0:04:57.5]} 3. Bg2 {[%clk 0:04:51.5]} 3... Nd7 {[%clk 0:04:57.2]} 4.
O-O {[%clk 0:04:49.2]} 4... c6 {[%clk 0:04:56.3]} 5. d3 {[%clk 0:04:48.7]} 5...
e5 {[%clk 0:04:55.5]} 6. c4 {[%clk 0:04:47.3]} 6... h6 {[%clk 0:04:54.4]} 7. Nc3
{[%clk 0:04:45.5]} 7... Ngf6 {[%clk 0:04:52.7]} 8. Rb1 {[%clk 0:04:42.1]} 8...
Be7 {[%clk 0:04:51.5]} 9. b4 {[%clk 0:04:40.8]} 9... O-O {[%clk 0:04:50.4]} 10.
a4 {[%clk 0:04:39.2]} 10... d5 {[%clk 0:04:47.4]} 11. h3 {[%clk 0:04:31.1]}
11... Be6 {[%clk 0:04:45.1]} 12. Nd2 {[%clk 0:04:26.1]} 12... h5 {[%clk
0:04:35.3]} 13. b5 {[%clk 0:04:19.8]} 13... h4 {[%clk 0:04:33.6]} 14. g4 {[%clk
0:04:17.3]} 14... Nc5 {[%clk 0:04:26.2]} 15. Qc2 {[%clk 0:04:01]} 15... Nh7
{[%clk 0:04:17.2]} 16. f4 {[%clk 0:03:51]} 16... exf4 {[%clk 0:04:14.2]} 17.
Rxf4 {[%clk 0:03:49.3]} 17... Bg5 {[%clk 0:04:06.8]} 18. Nf3 {[%clk 0:03:44.2]}
18... Bxf4 {[%clk 0:04:04.3]} 19. Bxf4 {[%clk 0:03:42.2]} 19... f6 {[%clk
0:03:55]} 20. Be3 {[%clk 0:03:24.3]} 20... Nd7 {[%clk 0:03:45.9]} 21. c5 {[%clk
0:03:17.2]} 21... Ne5 {[%clk 0:03:38.8]} 22. Nxh4 {[%clk 0:03:11.3]} 22... d4
{[%clk 0:03:33.9]} 23. Ne4 {[%clk 0:02:40.9]} 23... dxe3 {[%clk 0:03:31]} 24.
Nd6 {[%clk 0:02:38.6]} 24... Rb8 {[%clk 0:03:17.8]} 25. d4 {[%clk 0:02:37]}
25... Nf7 {[%clk 0:03:14.3]} 26. Ng6 {[%clk 0:02:19]} 26... Nxd6 {[%clk
0:03:13]} 27. Nxf8 {[%clk 0:02:17.7]} 27... Nxf8 {[%clk 0:03:11.4]} 28. cxd6
{[%clk 0:02:13.3]} 28... Qxd6 {[%clk 0:03:10.4]} 29. bxc6 {[%clk 0:02:12]} 29...
b6 {[%clk 0:03:05.4]} 30. c7 {[%clk 0:02:08]} 30... Rc8 {[%clk 0:03:03.8]} 31.
Rc1 {[%clk 0:02:07.5]} 31... Qxd4 {[%clk 0:02:56.6]} 32. Bb7 {[%clk 0:02:02.7]}
32... Qf4 {[%clk 0:02:49]} 33. Bxc8 {[%clk 0:01:58.4]} 33... Qg3+ {[%clk
0:02:45.8]} 34. Kf1 {[%clk 0:01:52.3]} 34... Qf2# {[%clk 0:02:43.8]} 0-1

[Event "Live Chess"]
[Site "Chess.com"]
[Date "2024.06.01"]
[Round "-"]
[White "SirGerhard"]
[Black "Pedrada88"]
[Result "1-0"]
[WhiteElo "2764"]
[BlackElo "2548"]
[TimeControl "300"]
[EndTime "9:50:57 PDT"]
[Termination "SirGerhard won by resignation"]

1. e4 {[%clk 0:04:57.2]} 1... c5 {[%clk 0:04:58.3]} 2. Nc3 {[%clk 0:04:56.3]}
2... Nc6 {[%clk 0:04:57.5]} 3. Bb5 {[%clk 0:04:55.4]} 3... Nd4 {[%clk
0:04:56.2]} 4. Bc4 {[%clk 0:04:54.7]} 4... e6 {[%clk 0:04:55.5]} 5. Nge2 {[%clk
0:04:54.1]} 5... a6 {[%clk 0:04:53.3]} 6. Nxd4 {[%clk 0:04:53]} 6... cxd4 {[%clk
0:04:53.2]} 7. Ne2 {[%clk 0:04:52.6]} 7... b5 {[%clk 0:04:51.2]} 8. Bb3 {[%clk
0:04:51.9]} 8... Qb6 {[%clk 0:04:49.8]} 9. d3 {[%clk 0:04:51.3]} 9... a5 {[%clk
0:04:48.1]} 10. a4 {[%clk 0:04:49.4]} 10... b4 {[%clk 0:04:44.9]} 11. O-O {[%clk
0:04:48]} 11... Ne7 {[%clk 0:04:41.6]} 12. Ng3 {[%clk 0:04:45]} 12... Nc6 {[%clk
0:04:39.8]} 13. f4 {[%clk 0:04:43.2]} 13... Bb7 {[%clk 0:04:37.3]} 14. f5 {[%clk
0:04:40]} 14... Be7 {[%clk 0:04:35.3]} 15. Qg4 {[%clk 0:04:31.5]} 15... Bf6
{[%clk 0:04:26.5]} 16. Nh5 {[%clk 0:04:29.8]} 16... O-O-O {[%clk 0:04:24.8]} 17.
fxe6 {[%clk 0:04:18.7]} 17... fxe6 {[%clk 0:04:14.2]} 18. Nxf6 {[%clk
0:04:17.9]} 18... gxf6 {[%clk 0:04:13.1]} 19. Rxf6 {[%clk 0:04:17.1]} 19... Rhg8
{[%clk 0:04:10.1]} 20. Qh4 {[%clk 0:04:14.9]} 20... Ne5 {[%clk 0:04:04.7]} 21.
Kh1 {[%clk 0:03:56.4]} 21... Rg4 {[%clk 0:03:57.1]} 22. Qf2 {[%clk 0:03:52.2]}
22... Qd6 {[%clk 0:03:32.7]} 23. Bh6 {[%clk 0:03:30]} 23... Kc7 {[%clk
0:02:38.9]} 24. Bf8 {[%clk 0:03:11.4]} 24... Qc6 {[%clk 0:02:33.2]} 25. Qxd4
{[%clk 0:03:01.4]} 25... Ng6 {[%clk 0:01:53.2]} 26. Bh6 {[%clk 0:02:48.2]} 26...
Rg8 {[%clk 0:01:48.4]} 27. Raf1 {[%clk 0:02:43.3]} 27... Nh4 {[%clk 0:01:25.6]}
28. Bf4+ {[%clk 0:02:39]} 28... Rxf4 {[%clk 0:01:10.1]} 29. R6xf4 {[%clk
0:02:37.9]} 29... Nxg2 {[%clk 0:01:07.5]} 30. Rf8 {[%clk 0:02:36.8]} 30... Rg5
{[%clk 0:00:54.7]} 31. Rg1 {[%clk 0:02:36]} 31... Nh4 {[%clk 0:00:25.3]} 32.
Rxg5 {[%clk 0:02:33]} 32... Nf3 {[%clk 0:00:24.8]} 33. Rxf3 {[%clk 0:02:31.2]}
1-0

[Event "Live Chess"]
[Site "Chess.com"]
[Date "2024.06.01"]
[Round "-"]
[White "raimundklein"]
[Black "halfberg"]
[Result "0-1"]
[WhiteElo "1567"]
[BlackElo "1905"]
[TimeControl "300"]
[EndTime "9:51:04 PDT"]
[Termination "halfberg won by resignation"]

1. e4 {[%clk 0:04:55.7]} 1... c5 {[%clk 0:04:58.6]} 2. Nf3 {[%clk 0:04:54.3]}
2... Nc6 {[%clk 0:04:57.5]} 3. c3 {[%clk 0:04:51.9]} 3... Nf6 {[%clk 0:04:54.4]}
4. e5 {[%clk 0:04:36.9]} 4... Nd5 {[%clk 0:04:52.9]} 5. d4 {[%clk 0:04:33.7]}
5... cxd4 {[%clk 0:04:51.1]} 6. cxd4 {[%clk 0:04:32.1]} 6... d6 {[%clk
0:04:49.3]} 7. Bc4 {[%clk 0:04:27.3]} 7... Nb6 {[%clk 0:04:47.3]} 8. Bb3 {[%clk
0:04:22.1]} 8... dxe5 {[%clk 0:04:44.5]} 9. dxe5 {[%clk 0:04:20.7]} 9... Qxd1+
{[%clk 0:04:43.1]} 10. Bxd1 {[%clk 0:04:20.6]} 10... e6 {[%clk 0:04:41.1]} 11.
O-O {[%clk 0:04:18.9]} 11... Be7 {[%clk 0:04:38.7]} 12. Nc3 {[%clk 0:04:16.3]}
12... O-O {[%clk 0:04:35.8]} 13. a3 {[%clk 0:04:09.5]} 13... Rd8 {[%clk
0:04:30.9]} 14. Bc2 {[%clk 0:04:08.1]} 14... Bd7 {[%clk 0:04:17.8]} 15. Be3
{[%clk 0:04:04.5]} 15... Nc4 {[%clk 0:04:13.1]} 16. Bf4 {[%clk 0:03:47.4]} 16...
a6 {[%clk 0:03:57.2]} 17. b3 {[%clk 0:03:39.2]} 17... Nxa3 {[%clk 0:03:53.5]}
18. Be4 {[%clk 0:03:36.2]} 18... Nb5 {[%clk 0:03:36.2]} 19. Na4 {[%clk
0:03:33.1]} 19... Ncd4 {[%clk 0:03:06]} 20. Be3 {[%clk 0:03:26.2]} 20... Nxb3
{[%clk 0:03:00.3]} 21. Rab1 {[%clk 0:03:18.6]} 21... N5d4 {[%clk 0:02:49.5]} 22.
Nb6 {[%clk 0:03:14.3]} 22... Bb5 {[%clk 0:02:15.8]} 23. Rfe1 {[%clk 0:03:00.7]}
23... Rab8 {[%clk 0:02:08.7]} 24. Ng5 {[%clk 0:02:18.8]} 24... h6 {[%clk
0:01:44.5]} 25. Nh3 {[%clk 0:02:14.5]} 25... Nc5 {[%clk 0:01:34.5]} 26. Bxd4
{[%clk 0:01:54.5]} 26... Rxd4 {[%clk 0:01:31.9]} 27. Bf3 {[%clk 0:01:53]} 27...
Nd3 {[%clk 0:01:16.4]} 28. Red1 {[%clk 0:01:49.6]} 28... Rbd8 {[%clk 0:01:13.6]}
0-1

[Event "Live Chess"]
[Site "Chess.com"]
[Date "2024.06.01"]
[Round "-"]
[White "Tatarinov_Maxim"]
[Black "Isambard_Thomas"]
[Result "0-1"]
[WhiteElo "2270"]
[BlackElo "2137"]
[TimeControl "300"]
[EndTime "9:51:05 PDT"]
[Termination "Isambard_Thomas won by resignation"]

1. Nf3 {[%clk 0:04:57.5]} 1... d5 {[%clk 0:04:58.8]} 2. g3 {[%clk 0:04:55.8]}
2... Nf6 {[%clk 0:04:57.7]} 3. Bg2 {[%clk 0:04:54]} 3... Bg4 {[%clk 0:04:57.3]}
4. c4 {[%clk 0:04:50.8]} 4... c6 {[%clk 0:04:56.1]} 5. Ne5 {[%clk 0:04:49.3]}
5... h5 {[%clk 0:04:54.4]} 6. Nxg4 {[%clk 0:04:46.9]} 6... hxg4 {[%clk
0:04:52.9]} 7. Qb3 {[%clk 0:04:45.3]} 7... Qd7 {[%clk 0:04:48.1]} 8. cxd5 {[%clk
0:04:38.3]} 8... Nxd5 {[%clk 0:04:45.6]} 9. Nc3 {[%clk 0:04:37]} 9... e6 {[%clk
0:04:44.3]} 10. d3 {[%clk 0:04:32.7]} 10... Bd6 {[%clk 0:04:37.6]} 11. Bd2
{[%clk 0:04:26.6]} 11... Na6 {[%clk 0:04:32]} 12. O-O {[%clk 0:04:20.2]} 12...
Nc5 {[%clk 0:04:28.3]} 13. Qc4 {[%clk 0:04:10.9]} 13... O-O-O {[%clk 0:03:49.7]}
14. Qxg4 {[%clk 0:03:56.1]} 14... f5 {[%clk 0:03:44.6]} 15. Qf3 {[%clk
0:03:46.8]} 15... Nxc3 {[%clk 0:03:30]} 16. bxc3 {[%clk 0:03:40.4]} 16... Rdg8
{[%clk 0:03:21.4]} 17. Rab1 {[%clk 0:03:35.6]} 17... g5 {[%clk 0:03:14.2]} 18.
d4 {[%clk 0:03:27.4]} 18... Qh7 {[%clk 0:02:16.6]} 19. h3 {[%clk 0:02:52.2]}
19... g4 {[%clk 0:02:10.7]} 20. Qe3 {[%clk 0:02:51.1]} 20... f4 {[%clk 0:02:05]}
21. Qxf4 {[%clk 0:02:24.2]} 21... Bxf4 {[%clk 0:02:03.4]} 22. Bxf4 {[%clk
0:02:24.1]} 22... gxh3 {[%clk 0:01:43.1]} 23. Bf3 {[%clk 0:02:22.1]} 23... h2+
{[%clk 0:01:39.3]} 24. Kh1 {[%clk 0:02:21.1]} 24... Ne4 {[%clk 0:01:26.5]} 25.
Rb3 {[%clk 0:02:14.7]} 25... Qf5 {[%clk 0:01:18.8]} 26. Be5 {[%clk 0:02:02.1]}
26... Nd2 {[%clk 0:01:08.6]} 0-1

[Event "Live Chess"]
[Site "Chess.com"]
[Date "2024.06.01"]
[Round "-"]
[White "14141409"]
[Black "Delacorta"]
[Result "1-0"]
[WhiteElo "2561"]
[BlackElo "1397"]
[TimeControl "300"]
[EndTime "9:51:12 PDT"]
[Termination "14141409 won by resignation"]

1. e4 {[%clk 0:04:57.7]} 1... e6 {[%clk 0:04:59.1]} 2. d4 {[%clk 0:04:56.7]}
2... d5 {[%clk 0:04:58.2]} 3. e5 {[%clk 0:04:52]} 3... c5 {[%clk 0:04:56]} 4. c3
{[%clk 0:04:51]} 4... Nc6 {[%clk 0:04:53.8]} 5. Nf3 {[%clk 0:04:50.5]} 5... Qb6
{[%clk 0:04:48.5]} 6. Be2 {[%clk 0:04:48.2]} 6... Nge7 {[%clk 0:04:39.2]} 7. O-O
{[%clk 0:04:45.4]} 7... Ng6 {[%clk 0:04:35.5]} 8. Na3 {[%clk 0:04:38.4]} 8... a6
{[%clk 0:04:29.7]} 9. Nc2 {[%clk 0:04:34.6]} 9... Bd7 {[%clk 0:04:25.4]} 10. a3
{[%clk 0:04:27.1]} 10... Be7 {[%clk 0:04:17.1]} 11. b4 {[%clk 0:04:24.6]} 11...
c4 {[%clk 0:04:13.9]} 12. g3 {[%clk 0:04:22.2]} 12... f6 {[%clk 0:04:10.2]} 13.
exf6 {[%clk 0:04:19.3]} 13... gxf6 {[%clk 0:04:08.3]} 14. h4 {[%clk 0:04:16.8]}
14... O-O-O {[%clk 0:04:05.4]} 15. h5 {[%clk 0:04:15.9]} 15... Nf8 {[%clk
0:03:46.5]} 16. Bf4 {[%clk 0:04:14.6]} 16... h6 {[%clk 0:03:28]} 17. a4 {[%clk
0:04:10]} 17... Re8 {[%clk 0:03:19.6]} 18. Ne3 {[%clk 0:04:00.1]} 18... Nh7
{[%clk 0:03:17.1]} 19. Bxh6 {[%clk 0:03:57.7]} 19... Ng5 {[%clk 0:03:15.9]} 20.
Bxg5 {[%clk 0:03:56.1]} 20... fxg5 {[%clk 0:03:15.8]} 21. Ng4 {[%clk 0:03:54.1]}
21... Rxh5 {[%clk 0:03:14.5]} 22. Nfe5 {[%clk 0:03:51.4]} 22... Nxe5 {[%clk
0:03:12.7]} 23. Nxe5 {[%clk 0:03:49.3]} 23... Qc7 {[%clk 0:03:07]} 24. Bxh5
{[%clk 0:03:46.5]} 24... Rh8 {[%clk 0:03:05.3]} 25. Nxd7 {[%clk 0:03:45.3]}
25... Qxd7 {[%clk 0:03:03.9]} 26. Bg4 {[%clk 0:03:44.6]} 26... Bd6 {[%clk
0:02:58.4]} 27. Qe2 {[%clk 0:03:42.6]} 27... Qh7 {[%clk 0:02:57.1]} 28. Bh5
{[%clk 0:03:30.4]} 28... Kd7 {[%clk 0:02:42.3]} 29. Kg2 {[%clk 0:03:24.7]} 29...
Qxh5 {[%clk 0:02:40.5]} 30. Qxh5 {[%clk 0:03:22.8]} 30... Rxh5 {[%clk
0:02:39.1]} 31. Rh1 {[%clk 0:03:22.3]} 1-0

[Event "Live Chess"]
[Site "Chess.com"]
[Date "2024.06.01"]
[Round "-"]
[White "DarranAS"]
[Black "Berdgross"]
[Result "1-0"]
[WhiteElo "1554"]
[BlackElo "579"]
[TimeControl "300"]
[EndTime "9:51:13 PDT"]
[Termination "DarranAS won by resignation"]

1. d4 {[%clk 0:04:56.5]} 1... d5 {[%clk 0:04:58.5]} 2. Nf3 {[%clk 0:04:52.6]}
2... e6 {[%clk 0:04:58.4]} 3. g3 {[%clk 0:04:51.1]} 3... Nf6 {[%clk 0:04:57]} 4.
c3 {[%clk 0:04:47.6]} 4... Nc6 {[%clk 0:04:53.7]} 5. Bg2 {[%clk 0:04:45.3]} 5...
h6 {[%clk 0:04:51.9]} 6. O-O {[%clk 0:04:41.5]} 6... a6 {[%clk 0:04:50.9]} 7.
Nbd2 {[%clk 0:04:39]} 7... Ng4 {[%clk 0:04:45.3]} 8. e4 {[%clk 0:04:33.3]} 8...
dxe4 {[%clk 0:04:42.2]} 9. Nxe4 {[%clk 0:04:30.2]} 9... h5 {[%clk 0:04:34.5]}
10. Bf4 {[%clk 0:04:22.2]} 10... Bd6 {[%clk 0:04:28.1]} 11. Qd2 {[%clk
0:04:14.2]} 11... Bxf4 {[%clk 0:04:25.7]} 12. Qxf4 {[%clk 0:04:12.1]} 12... O-O
{[%clk 0:04:09.5]} 13. Rad1 {[%clk 0:04:04]} 13... Re8 {[%clk 0:04:02.1]} 14.
Ne5 {[%clk 0:03:56.3]} 14... Ncxe5 {[%clk 0:04:00.5]} 15. dxe5 {[%clk 0:03:52]}
15... Qe7 {[%clk 0:03:52.4]} 16. h3 {[%clk 0:03:43.4]} 16... Nf6 {[%clk
0:03:44.3]} 17. exf6 {[%clk 0:03:41.4]} 17... gxf6 {[%clk 0:03:40.4]} 18. Nxf6+
{[%clk 0:03:38]} 18... Kg7 {[%clk 0:03:37.8]} 19. Nxe8+ {[%clk 0:03:30.7]} 19...
Qxe8 {[%clk 0:03:35.4]} 20. Qg5+ {[%clk 0:03:25.1]} 1-0

[Event "Live Chess"]
[Site "Chess.com"]
[Date "2024.06.01"]
[Round "-"]
[White "Andysav3"]
[Black "Cruiseylee78"]
[Result "1-0"]
[WhiteElo "1864"]
[BlackElo "1657"]
[TimeControl "300"]
[EndTime "9:51:31 PDT"]
[Termination "Andysav3 won by resignation"]

1. e4 {[%clk 0:04:56.4]} 1... c5 {[%clk 0:04:56.4]} 2. c3 {[%clk 0:04:55]} 2...
d5 {[%clk 0:04:54.4]} 3. exd5 {[%clk 0:04:53.7]} 3... Qxd5 {[%clk 0:04:53.2]} 4.
d4 {[%clk 0:04:53]} 4... cxd4 {[%clk 0:04:52.4]} 5. cxd4 {[%clk 0:04:51.9]} 5...
Nc6 {[%clk 0:04:51]} 6. Nf3 {[%clk 0:04:48.7]} 6... Bg4 {[%clk 0:04:50]} 7. Nc3
{[%clk 0:04:47]} 7... Qa5 {[%clk 0:04:42.4]} 8. Be2 {[%clk 0:04:33.1]} 8...
O-O-O {[%clk 0:04:41.1]} 9. O-O {[%clk 0:04:10.7]} 9... Nxd4 {[%clk 0:04:18.5]}
10. Nxd4 {[%clk 0:03:48.7]} 10... Bxe2 {[%clk 0:04:14.8]} 11. Ncxe2 {[%clk
0:03:46.4]} 11... e5 {[%clk 0:04:13.1]} 12. Qc2+ {[%clk 0:03:45.2]} 12... Kb8
{[%clk 0:04:11.9]} 13. Nb3 {[%clk 0:03:35.8]} 13... Qd5 {[%clk 0:04:04.6]} 14.
Be3 {[%clk 0:03:30.3]} 14... Qe6 {[%clk 0:03:58.1]} 15. Rac1 {[%clk 0:03:25.4]}
15... Ne7 {[%clk 0:03:50.1]} 16. Qc7+ {[%clk 0:03:20.2]} 1-0

[Event "Live Chess"]
[Site "Chess.com"]
[Date "2024.06.01"]
[Round "-"]
[White "Yegorych"]
[Black "Ksenia_2013"]
[Result "1-0"]
[WhiteElo "1625"]
[BlackElo "721"]
[TimeControl "300"]
[EndTime "9:51:32 PDT"]
[Termination "Yegorych won by checkmate"]

1. d4 {[%clk 0:04:53.3]} 1... f5 {[%clk 0:04:57.5]} 2. c4 {[%clk 0:04:50.7]}
2... Nc6 {[%clk 0:04:54.3]} 3. Nc3 {[%clk 0:04:45.9]} 3... Nf6 {[%clk
0:04:45.8]} 4. g3 {[%clk 0:04:40.4]} 4... g6 {[%clk 0:04:43.1]} 5. Bg2 {[%clk
0:04:36.7]} 5... Bg7 {[%clk 0:04:41.4]} 6. Nf3 {[%clk 0:04:31.6]} 6... O-O
{[%clk 0:04:38]} 7. Ne5 {[%clk 0:04:14.1]} 7... Nxe5 {[%clk 0:04:32.4]} 8. dxe5
{[%clk 0:04:14]} 8... Ng4 {[%clk 0:04:30.3]} 9. f4 {[%clk 0:04:10]} 9... Ne3
{[%clk 0:04:25.8]} 10. Bxe3 {[%clk 0:04:07.3]} 10... d6 {[%clk 0:04:17.7]} 11.
exd6 {[%clk 0:03:19]} 11... exd6 {[%clk 0:04:15]} 12. Qd5+ {[%clk 0:03:13.5]}
12... Rf7 {[%clk 0:04:10.1]} 13. O-O {[%clk 0:03:07.3]} 13... Qe8 {[%clk
0:04:06.6]} 14. Bd4 {[%clk 0:03:03]} 14... Bxd4+ {[%clk 0:04:02.9]} 15. Qxd4
{[%clk 0:02:59.6]} 15... Be6 {[%clk 0:03:58.1]} 16. Bd5 {[%clk 0:02:57.3]} 16...
c5 {[%clk 0:03:56]} 17. Qd2 {[%clk 0:02:51]} 17... Bxd5 {[%clk 0:03:53.3]} 18.
Nxd5 {[%clk 0:02:48.1]} 18... Qe4 {[%clk 0:03:46.9]} 19. Qd3 {[%clk 0:02:43.7]}
19... Qe8 {[%clk 0:03:35.5]} 20. Rfe1 {[%clk 0:02:41.2]} 20... Qc6 {[%clk
0:03:24.7]} 21. e4 {[%clk 0:02:38.1]} 21... a6 {[%clk 0:03:21.4]} 22. e5 {[%clk
0:02:32.9]} 22... dxe5 {[%clk 0:03:19.5]} 23. Rxe5 {[%clk 0:02:31.5]} 23... Re8
{[%clk 0:03:16.6]} 24. Rae1 {[%clk 0:02:28.4]} 24... Rxe5 {[%clk 0:03:12.7]} 25.
Rxe5 {[%clk 0:02:28.3]} 25... b5 {[%clk 0:03:08.2]} 26. Ne7+ {[%clk 0:02:26.9]}
26... Rxe7 {[%clk 0:03:05.3]} 27. Rxe7 {[%clk 0:02:26.8]} 27... Qc8 {[%clk
0:03:02.4]} 28. Qd5+ {[%clk 0:02:24]} 28... Kf8 {[%clk 0:02:56.9]} 29. Qf7#
{[%clk 0:02:21.9]} 1-0

[Event "Live Chess"]
[Site "Chess.com"]
[Date "2024.06.01"]
[Round "-"]
[White "Harry_Li"]
[Black "nitrofish07"]
[Result "0-1"]
[WhiteElo "2138"]
[BlackElo "2152"]
[TimeControl "300"]
[EndTime "9:51:43 PDT"]
[Termination "nitrofish07 won on time"]

1. e4 {[%clk 0:04:57.4]} 1... c5 {[%clk 0:04:59]} 2. Nf3 {[%clk 0:04:56.4]} 2...
d6 {[%clk 0:04:58.3]} 3. d4 {[%clk 0:04:55.9]} 3... cxd4 {[%clk 0:04:58.2]} 4.
Nxd4 {[%clk 0:04:55.7]} 4... Nf6 {[%clk 0:04:57.9]} 5. Nc3 {[%clk 0:04:55.4]}
5... a6 {[%clk 0:04:57.6]} 6. Bg5 {[%clk 0:04:55]} 6... e6 {[%clk 0:04:57.1]} 7.
f4 {[%clk 0:04:54.5]} 7... Be7 {[%clk 0:04:56.7]} 8. Qf3 {[%clk 0:04:54.1]} 8...
Qc7 {[%clk 0:04:56.2]} 9. O-O-O {[%clk 0:04:53.6]} 9... Nbd7 {[%clk 0:04:55.6]}
10. g4 {[%clk 0:04:51.3]} 10... h6 {[%clk 0:04:55]} 11. Bxf6 {[%clk 0:04:46.6]}
11... Bxf6 {[%clk 0:04:54.9]} 12. h4 {[%clk 0:04:44.8]} 12... Bxd4 {[%clk
0:04:54.3]} 13. Rxd4 {[%clk 0:04:44.1]} 13... Qc5 {[%clk 0:04:54]} 14. Rd2
{[%clk 0:04:43.2]} 14... Nb6 {[%clk 0:04:51]} 15. Be2 {[%clk 0:04:33.1]} 15...
Bd7 {[%clk 0:04:46.6]} 16. g5 {[%clk 0:04:25.8]} 16... O-O-O {[%clk 0:04:34.4]}
17. Rhd1 {[%clk 0:04:19.2]} 17... Be8 {[%clk 0:04:24.3]} 18. f5 {[%clk
0:04:11.6]} 18... hxg5 {[%clk 0:04:11.8]} 19. hxg5 {[%clk 0:04:11.5]} 19... Kb8
{[%clk 0:04:11.3]} 20. Qg3 {[%clk 0:03:28.9]} 20... e5 {[%clk 0:03:55.3]} 21.
Nd5 {[%clk 0:03:03.8]} 21... Nxd5 {[%clk 0:03:09.3]} 22. Rxd5 {[%clk 0:03:03.7]}
22... Qc7 {[%clk 0:03:07.4]} 23. Qb3 {[%clk 0:01:00.5]} 23... Bc6 {[%clk
0:02:52.7]} 24. R5d2 {[%clk 0:00:54.3]} 24... Bxe4 {[%clk 0:02:37.4]} 25. Bxa6
{[%clk 0:00:46.9]} 25... Rc8 {[%clk 0:02:07.5]} 26. c3 {[%clk 0:00:38.1]} 26...
d5 {[%clk 0:02:04]} 27. f6 {[%clk 0:00:25.2]} 27... g6 {[%clk 0:01:55.8]} 28.
Bd3 {[%clk 0:00:21.3]} 28... Bxd3 {[%clk 0:01:42.1]} 29. Rxd3 {[%clk 0:00:21.2]}
29... d4 {[%clk 0:01:42]} 30. Kb1 {[%clk 0:00:20.5]} 30... Rhd8 {[%clk 0:01:29]}
31. cxd4 {[%clk 0:00:19.1]} 31... Rxd4 {[%clk 0:01:25]} 32. Rxd4 {[%clk
0:00:18.3]} 32... exd4 {[%clk 0:01:24.9]} 33. a3 {[%clk 0:00:18.1]} 33... Rd8
{[%clk 0:01:18.2]} 34. Qb4 {[%clk 0:00:15.2]} 34... Qe5 {[%clk 0:01:14.2]} 35.
Qe7 {[%clk 0:00:12.9]} 35... Qc7 {[%clk 0:01:08.9]} 36. Qe4 {[%clk 0:00:09.2]}
36... Qd6 {[%clk 0:01:04.7]} 37. Rd3 {[%clk 0:00:08.3]} 37... Qd5 {[%clk
0:00:59.5]} 38. Qxd5 {[%clk 0:00:07.1]} 38... Rxd5 {[%clk 0:00:59.4]} 39. Kc2
{[%clk 0:00:06.3]} 39... Rxg5 {[%clk 0:00:58.1]} 40. Rxd4 {[%clk 0:00:05.7]}
40... Rf5 {[%clk 0:00:57.8]} 41. Rd8+ {[%clk 0:00:04.9]} 41... Kc7 {[%clk
0:00:56.7]} 42. Rf8 {[%clk 0:00:03.7]} 42... Rxf6 {[%clk 0:00:56.1]} 43. Kd3
{[%clk 0:00:03.3]} 43... Rf2 {[%clk 0:00:55.1]} 44. b3 {[%clk 0:00:02.4]} 44...
f5 {[%clk 0:00:54]} 45. Kc4 {[%clk 0:00:02.3]} 45... g5 {[%clk 0:00:53.3]} 46.
Rg8 {[%clk 0:00:01.5]} 46... g4 {[%clk 0:00:52.6]} 47. Kd3 {[%clk 0:00:01.4]}
47... Rf3+ {[%clk 0:00:50.6]} 48. Ke2 {[%clk 0:00:00.9]} 48... Rxb3 {[%clk
0:00:49.6]} 49. Rg5 {[%clk 0:00:00.8]} 49... Rxa3 {[%clk 0:00:47.5]} 50. Rxf5
{[%clk 0:00:00.5]} 50... Ra2+ {[%clk 0:00:46.8]} 0-1